bitfinex-derivatives/quotes_ETHF0:USTF0_20250612
["timestamp","ask_amount","ask_price","bid_price","bid_amount"]
[1749743961677,0.73477,2721.6,2721.4,1.94978]
[1749743962185,0.73477,2721.5,2721.4,1.215]
[1749743962386,0.73478,2721.5,2721.3,3.9426]
[1749743962680,0.73478,2721.5,2721.4,0.73479]
[1749743962888,36.2258,2721.9,2721.5,0.73477]
[1749743963089,36.2258,2721.9,2721.4,1.97918]
[1749743963386,0.73476,2721.6,2721.4,1.97919]
[1749743963591,0.73477,2721.5,2721.4,1.2444]
[1749743963782,1.83679,2721.7,2721.1,0.00551288]
[1749743963989,1.83679,2721.7,2721.1,1.24991288]
[1749743964179,25.395,2721.9,2721.3,3.2078]
[1749743964491,25.395,2721.9,2721.5,0.73475]
[1749743965083,1.83672,2721.8,2721.3,3.9426]
[1749743965282,0.73478,2721.5,2721.3,3.2078]
[1749743965482,26.5964,2721.9,2721.4,1.2444]
[1749743965685,0.73479,2721.5,2721.4,1.97919]
[1749743965991,0.73479,2721.4,2721.3,3.2078]
[1749743966187,0.73485,2721.2,2721.1,0.00551288]
[1749743966787,0.73483,2721.3,2721.2,0.73484]
[1749743966988,1.83683,2721.7,2721.3,0.73482]
[1749743967189,0.73482,2721.3,2721.2,1.2323]
[1749743967591,0.73485,2721.2,2721.1,3.21331288]
[1749743967987,0.73501,2720.6,2720.5,3.2078]
[1749743968293,0.73501,2720.6,2720.1,3.94293]
[1749743968294,1.83755,2720.6,2720.1,3.94293]
[1749743968591,1.83761,2720.5,2720.1,3.2078]
[1749743968784,0.73512,2720.2,2720.1,3.2078]
[1749743968985,0.73522,2719.9,2719.7,4.4401]
[1749743969290,1.83784,2720.2,2719.5,0.00551288]
[1749743969291,0.73528,2719.6,2719.5,0.00551288]
[1749743969485,0.7693,2720.3,2719.5,0.00551288]
[1749743969782,0.00551288,2720.4,2720.3,0.73509]
[1749743969981,0.00551288,2720.4,2720.1,3.2078]
[1749743970182,0.00551288,2720.4,2720.2,1.202]
[1749743970183,0.74059288,2720.4,2720.2,1.202]
[1749743970383,0.74059288,2720.4,2720.2,1.93712]
[1749743970586,0.73509,2720.3,2720.2,1.202]
[1749743970788,0.73509,2720.3,2719.6,7.622]
[1749743970789,0.00551288,2720.4,2719.8,3.2078]
[1749743970984,0.73513,2720.2,2720.0,0.73516]
[1749743971593,0.73511,2720.3,2720.0,0.73516]
[1749743971896,0.00551288,2720.4,2720.1,3.2078]
[1749743972085,0.73512,2720.2,2720.1,3.2078]
[1749743972290,0.73511,2720.3,2720.1,3.2078]
[1749743972796,0.73512,2720.2,2720.1,3.2078]
[1749743972993,0.00551288,2720.4,2720.1,3.94293]
[1749743973192,0.00551288,2720.4,2720.3,0.73509]
[1749743976201,0.73494,2720.9,2720.7,0.73496]
[1749743976386,9.45918,2721.2,2720.7,3.94276]
[1749743976592,1.83737,2720.9,2720.3,3.2078]
[1749743976793,1.8374,2720.8,2720.3,3.94288]
[1749743976996,0.73503,2720.6,2720.4,0.73506]
[1749743977197,0.73503,2720.6,2720.4,1.93336]
[1749743977399,0.73504,2720.5,2720.4,1.1983]
[1749743977599,0.73511,2720.3,2720.1,1.5144]
[1749743977796,1.83755,2720.6,2720.1,1.5144]
[1749743978097,0.73511,2720.3,2720.1,2.24954]
[1749743978296,0.73511,2720.3,2720.2,0.73512]
[1749743978499,5.04522,2720.8,2720.1,2.697]
[1749743978687,5.04522,2720.8,2720.3,3.2078]
[1749743978893,5.04522,2720.8,2720.3,3.94288]
[1749743978894,0.73507,2720.4,2720.3,3.94288]
[1749743979094,0.73507,2720.4,2720.3,3.2078]
[1749743979293,0.73499,2720.7,2720.6,0.73501]
[1749743979493,0.73499,2720.7,2720.4,1.1826]
[1749743979698,0.73494,2720.9,2720.8,0.73496]
[1749743979898,3.2078,2721.1,2721.0,0.7349]
[1749743980697,0.7348,2721.4,2721.2,0.73483]
[1749743980894,0.7348,2721.4,2721.3,1.1826]
[1749743982297,0.73488,2721.1,2721.0,3.21331288]
[1749743982503,0.73483,2721.3,2721.2,0.73483]
[1749743982802,0.73485,2721.3,2721.2,0.73485]
[1749743983004,2.58693,2721.7,2721.0,3.21331288]
[1749743983203,0.73484,2721.3,2721.2,0.73485]
[1749743983694,0.73485,2721.2,2721.1,1.2862]
[1749743983894,0.73488,2721.1,2721.0,0.00551288]
[1749743984101,1.83694,2721.5,2721.0,0.00551288]
[1749743984296,1.83686,2721.6,2721.0,0.00551288]
[1749743984600,1.83677,2721.8,2721.2,3.2078]
[1749743984805,1.83677,2721.8,2721.3,1.2025]
[1749743985103,0.73478,2721.5,2721.3,1.2025]
[1749743985304,0.7348,2721.4,2721.3,1.9373]
[1749743985503,0.7348,2721.4,2721.3,1.2025]
[1749743986202,0.7348,2721.4,2721.3,4.4103]
[1749743986504,1.83688,2721.6,2721.1,0.73487]
[1749743986807,1.83692,2721.7,2721.1,1.2025]
[1749743987007,6.9852,2721.9,2721.4,0.73488]
[1749743987205,5.1484,2721.9,2721.0,0.00551288]
[1749743987402,1.9406,2721.9,2721.2,3.2078]
[1749743987610,5.1484,2721.9,2721.0,0.00551288]
[1749743988812,3.2078,2721.5,2721.0,0.00551288]
[1749743989002,5.1484,2721.9,2721.0,1.29441288]
[1749743989207,3.2078,2721.5,2721.0,1.29441288]
[1749743989713,3.2078,2721.4,2721.0,1.29441288]
[1749743989904,3.2078,2721.2,2721.0,0.00551288]
[1749743990613,0.73493,2721.1,2721.0,0.00551288]
[1749743991506,0.735,2720.6,2720.5,3.2078]
[1749743994116,3.2078,2720.9,2720.5,3.2078]
[1749743994319,0.73489,2721.1,2720.9,0.73491]
[1749743994512,0.73489,2721.1,2720.6,1.1923]
[1749743994513,0.73497,2720.7,2720.6,1.1923]
[1749743994819,0.73497,2720.7,2720.3,3.94051288]
[1749743994820,0.73502,2720.6,2720.3,4.67558288]
[1749743995115,1.83737,2720.8,2720.4,1.1923]
[1749743995415,0.73501,2720.6,2720.4,1.1923]
[1749743995614,0.73501,2720.6,2720.4,1.92735]
[1749743996016,0.73502,2720.5,2720.4,1.1923]
[1749743996413,0.73505,2720.4,2720.3,3.21331288]
[1749743996615,5.0,2720.4,2719.7,3.2078]
[1749743996917,1.83781,2720.2,2719.7,3.2078]
[1749743997121,0.73521,2719.8,2719.7,3.2078]
[1749743997615,3.03579,2720.3,2719.7,3.2078]
[1749743997817,12.59842,2720.5,2719.7,3.2078]
[1749743997818,0.00551288,2720.0,2719.8,0.7352]
[1749743998022,0.00551288,2720.0,2719.9,2.03318]
[1749743998719,0.00551288,2720.0,2719.9,1.298]
[1749743999014,0.00551288,2720.0,2719.9,2.03319]
[1749744000317,5.04518,2720.8,2719.9,2.03319]
[1749744000318,3.2078,2720.8,2719.9,7.03319]
[1749744000521,3.2078,2720.8,2720.1,3.2078]
[1749744000920,0.73506,2720.4,2720.2,1.2498]
[1749744001122,0.73508,2720.3,2720.2,1.2498]
[1749744002019,5.0,2720.3,2719.7,3.2078]
[1749744002224,1.8377,2720.3,2719.7,3.2078]
[1749744002515,0.73521,2719.8,2719.7,3.2078]
[1749744002726,0.73527,2719.6,2719.5,0.00551288]
[1749744003027,0.73515,2720.1,2719.8,0.7352]
[1749744003227,0.73518,2720.0,2719.9,1.2676]
[1749744003723,0.73523,2719.8,2719.5,3.94859288]
[1749744003921,7.554,2720.2,2719.7,0.73523]
[1749744004126,0.73519,2719.9,2719.8,3.2078]
[1749744004627,7.554,2720.2,2719.8,3.2078]
[1749744004924,7.554,2720.2,2719.9,1.2676]
[1749744005122,7.554,2720.2,2719.5,3.21331288]
[1749744005318,7.554,2720.2,2719.6,3.2078]
[1749744005521,0.73526,2719.6,2719.5,0.00551288]
[1749744005922,16.49806,2719.6,2719.5,2.88e-06]
[1749744006525,0.73556,2718.5,2718.4,9.0727]
[1749744006920,3.2078,2719.1,2718.4,9.0727]
[1749744007117,3.2078,2719.1,2718.6,3.2078]
[1749744007330,0.73556,2718.5,2718.4,1.5177]
[1749744007519,0.73547,2718.9,2718.5,0.73555]
[1749744007721,0.00551288,2718.7,2718.4,1.5177]
[1749744007923,0.00551288,2718.7,2718.5,3.2078]
[1749744008120,0.73553,2718.6,2718.5,3.2078]
[1749744008323,0.73561,2718.3,2718.2,0.00551288]
[1749744009126,0.00551288,2718.7,2718.2,3.21331288]
[1749744009330,0.73561,2718.3,2718.2,3.21331288]
[1749744009528,0.73561,2718.3,2718.2,0.00551288]
[1749744010629,1.83931,2717.9,2717.3,4.517]
[1749744010938,1.2697,2718.3,2717.6,3.2078]
[1749744011134,3.2078,2718.1,2717.3,4.517]
[1749744011428,10.66474,2718.3,2717.3,4.517]
[1749744011429,0.73586,2717.4,2717.3,3.2078]
[1749744012433,3.2078,2717.8,2717.3,3.2078]
[1749744012831,3.2078,2717.4,2716.5,0.7318]
[1749744013039,0.73612,2716.4,2716.3,3.2078]
[1749744013229,7.545,2716.4,2715.8,3.2078]
[1749744013437,5.04805,2716.5,2715.8,3.2078]
[1749744013639,5.04805,2716.5,2715.8,4.3901]
[1749744013839,3.2078,2716.1,2715.9,0.00551288]
[1749744014137,0.73624,2716.0,2715.9,0.00551288]
[1749744014435,7.548,2716.2,2715.9,0.00551288]
[1749744014736,3.94403,2716.0,2715.9,0.00551288]
[1749744014938,10.7558,2716.0,2715.9,0.00551288]
[1749744015129,11.49203,2716.0,2715.9,0.00551288]
[1749744015335,12.78363,2716.0,2715.9,0.00551288]
[1749744015536,12.0474,2716.0,2715.9,0.00551288]
[1749744015836,3.2078,2716.0,2715.9,0.00551288]
[1749744016138,0.00551288,2716.4,2716.3,0.73615]
[1749744016139,2.88e-06,2716.4,2716.3,0.73615]
[1749744016332,2.88e-06,2716.4,2716.3,3.94395]
[1749744016527,2.88e-06,2716.4,2716.3,8.94395]
[1749744016734,2.88e-06,2716.4,2716.3,57.29195]
[1749744016931,2.88e-06,2716.4,2716.3,44.0078]
[1749744017135,2.88e-06,2716.4,2716.1,1.2578]
[1749744017335,2.88e-06,2716.4,2716.1,1.994]
[1749744017640,2.88e-06,2716.4,2716.2,0.73616]
[1749744017940,0.73615,2716.3,2716.2,1.2231]
[1749744018143,2.88e-06,2716.4,2716.0,3.921]
[1749744018144,0.7362,2716.1,2716.0,3.921]
[1749744018439,3.2078,2716.3,2715.9,0.00551288]
[1749744018642,3.94395,2716.3,2715.9,0.00551288]
[1749744018838,0.73619,2716.2,2715.9,0.00551288]
[1749744019233,3.20780288,2716.4,2715.9,1.22861288]
[1749744019430,2.88e-06,2716.4,2716.3,0.73615]
[1749744019841,2.88e-06,2716.4,2716.3,5.73615]
[1749744020033,2.88e-06,2716.4,2716.3,6.44575]
[1749744020236,3.2078,2717.9,2717.2,1.83971]
[1749744020432,3.2078,2718.0,2717.3,11.9799]
[1749744020634,3.2078,2718.0,2717.3,5.1674]
[1749744020840,0.73593,2717.1,2717.0,3.2078]
[1749744021141,0.73585,2717.5,2717.1,0.73592]
[1749744021445,0.73589,2717.3,2717.0,0.74147288]
[1749744021642,3.2078,2717.4,2717.0,0.00551288]
[1749744021941,3.2078,2717.4,2717.2,0.73591]
[1749744022142,3.94367,2717.4,2717.1,1.2452]
[1749744022338,3.2078,2717.4,2717.1,1.2452]
[1749744022542,3.94365,2717.4,2717.1,1.98112]
[1749744022741,3.2078,2717.4,2717.2,0.7359]
[1749744022943,3.2078,2717.4,2717.1,1.2452]
[1749744023146,3.2078,2717.4,2717.3,0.73588]
[1749744023542,0.3207,2718.2,2717.5,1.83957]
[1749744023747,3.9464,2719.4,2718.1,3.2078]
[1749744024045,3.9464,2719.4,2717.6,7.55]
[1749744024046,4.4766,2719.9,2719.3,3.2078]
[1749744024244,4.55013211,2719.9,2719.3,3.2078]
[1749744024440,0.07353211,2719.9,2719.7,3.94302]
[1749744024636,0.07353211,2719.9,2719.5,0.00551288]
[1749744024844,0.73525,2719.6,2719.5,2.88e-06]
[1749744025049,26.08525,2719.6,2719.5,2.88e-06]
[1749744025345,2.73625,2719.6,2719.5,2.88e-06]
[1749744025940,7.73625,2719.6,2719.5,2.88e-06]
[1749744026143,15.28525,2719.6,2719.5,2.88e-06]
[1749744026345,7.73625,2719.6,2719.5,2.88e-06]
[1749744026648,0.00551288,2720.1,2719.5,5.00000288]
[1749744026941,3.05176,2720.8,2720.0,3.2078]
[1749744027245,1.83754,2720.5,2719.5,3.91280288]
[1749744027445,1.2144,2720.4,2719.5,3.91280288]
[1749744027644,0.73518,2719.9,2719.5,3.91280288]
[1749744027846,1.2144,2720.4,2719.5,5.12030288]
[1749744028039,0.73522,2719.8,2719.5,3.20780288]
[1749744028247,7.55451288,2720.2,2719.5,3.20780288]
[1749744028544,0.00551288,2720.2,2719.5,3.20780288]
[1749744028748,0.00551288,2720.2,2720.1,3.2078]
[1749744028952,3.2485,2720.9,2720.1,3.2078]
[1749744028953,3.2485,2720.9,2720.6,0.73497]
[1749744029144,3.2485,2720.9,2720.5,3.2078]
[1749744029344,0.0407,2720.9,2720.6,1.2075]
[1749744030343,0.00551,2721.0,2720.8,3.2078]
[1749744030544,0.00551,2721.0,2720.9,1.94611]
[1749744030749,3.2078,2722.3,2720.9,1.2112]
[1749744030949,1.8364,2722.2,2721.6,3.2078]
[1749744031146,0.73469,2721.7,2721.6,3.2078]
[1749744031340,1.2343,2722.2,2721.6,3.2078]
[1749744031542,0.73463,2722.0,2721.6,3.2078]
[1749744031743,3.2078,2722.3,2721.7,1.2112]
[1749744031944,3.2078,2722.3,2720.5,3.2078]
[1749744031945,3.2078,2721.9,2720.5,3.2078]
[1749744032254,3.2078,2721.9,2719.7,22.247]
[1749744032255,0.7525,2722.5,2719.7,22.247]
[1749744032256,2.12023818,2723.4,2721.3,3.2078]
[1749744032441,3.67091,2723.6,2722.1,3.2078]
[1749744032442,3.2078,2722.9,2722.1,3.2078]
[1749744032647,0.73444,2722.7,2722.4,3.2078]
[1749744032947,0.00551288,2722.8,2722.4,3.2078]
[1749744033157,0.73413,2723.8,2723.2,0.73427]
[1749744033449,4.4608,2724.1,2723.2,3.2078]
[1749744034150,1.83556,2723.5,2722.6,3.2078]
[1749744034349,5.04354,2723.2,2722.2,3.2078]
[1749744034543,0.7345,2722.4,2722.2,3.2078]
[1749744034853,0.7345,2722.4,2721.6,4.4555]
[1749744035049,3.9423,2722.4,2721.6,1.2477]
[1749744035246,8.2078,2722.4,2721.4,3.2078]
[1749744035451,3.2078,2722.1,2721.4,3.2078]
[1749744035856,7.542,2722.3,2721.4,3.2078]
[1749744036047,5.04419,2722.2,2721.5,1.1951]
[1749744036248,0.73474,2721.5,2721.4,3.2078]
[1749744036448,0.73472,2721.6,2721.4,3.2078]
[1749744036650,0.73474,2721.5,2721.4,3.2078]
[1749744036849,0.73474,2721.5,2721.2,0.00551288]
[1749744036850,0.7348,2721.3,2721.2,0.00551288]
[1749744037058,0.73474,2721.5,2721.2,0.00551288]
[1749744037252,0.73473,2721.6,2721.2,0.00551288]
[1749744037444,0.7348,2721.3,2721.2,0.00551288]
[1749744037646,0.73478,2721.4,2721.2,0.00551288]
[1749744037948,0.7348,2721.3,2721.2,0.00551288]
[1749744038345,3.9426,2721.3,2721.2,0.00551288]
[1749744038956,3.2078,2721.3,2720.6,3.2078]
[1749744039254,0.73496,2720.7,2720.6,3.2078]
[1749744039452,0.7351,2720.2,2720.1,3.2078]
[1749744039956,0.73508,2720.3,2720.1,3.2078]
[1749744040258,0.73509,2720.2,2720.1,3.2078]
[1749744040658,0.73508,2720.3,2720.1,3.2078]
[1749744040958,0.00551288,2720.4,2720.1,8.2078]
[1749744041146,0.00551288,2720.4,2720.2,1.3095]
[1749744041452,0.73507,2720.3,2720.2,1.3095]
[1749744041657,0.73515,2720.0,2719.9,0.00551288]
[1749744041953,0.00551288,2720.4,2719.9,5.00551288]
[1749744042155,0.00551288,2720.4,2720.3,0.73507]
[1749744042453,3.2078,2721.7,2720.4,1.83761]
[1749744042653,0.73485,2721.1,2721.0,3.2078]
[1749744042854,0.73484,2721.2,2721.0,3.2078]
[1749744043154,0.73482,2721.2,2721.1,1.2725]
[1749744043357,1.84247288,2721.4,2721.1,3.2078]
[1749744043658,0.73496,2720.7,2720.6,0.7016]
[1749744044857,0.73501,2720.6,2720.4,4.4803]
[1749744045054,1.83724,2721.0,2720.4,4.4803]
[1749744045251,3.1161,2721.3,2720.4,4.4803]
[1749744045450,0.73492,2720.9,2720.7,3.2078]
[1749744045661,0.00551288,2721.4,2720.9,0.7349]
[1749744045957,0.00551288,2721.4,2721.3,3.9426]
[1749744046149,3.2078,2723.0,2722.2,0.73454]
[1749744046356,3.2078,2723.0,2722.4,3.2078]
[1749744046550,0.73444,2722.6,2722.5,1.2287]
[1749744046756,0.73447,2722.6,2722.4,3.2078]
[1749744046963,3.2078,2723.0,2722.5,1.2287]
[1749744047163,0.73444,2722.6,2722.5,1.23421288]
[1749744047361,0.73444,2722.6,2722.5,0.00551288]
[1749744047959,7.627,2723.2,2722.5,0.00551288]
[1749744048256,0.73444,2722.6,2722.5,0.00551288]
[1749744049069,0.73444,2722.7,2722.5,0.00551288]
[1749744049363,1.2398,2723.1,2722.5,1.19521288]
[1749744049568,0.73444,2722.6,2722.5,0.00551288]
[1749744050558,5.73444,2722.6,2721.8,3.2078]
[1749744050765,1.83632,2722.3,2721.3,3.9456]
[1749744050958,3.2078,2722.1,2721.4,1.1897]
[1749744051264,1.2431,2722.0,2721.4,1.1897]
[1749744051468,0.73474,2721.5,2721.4,1.1897]
[1749744051655,0.00551288,2721.7,2721.4,1.1897]
[1749744051862,0.00551288,2721.7,2721.6,3.94252]
[1749744052062,0.00551288,2721.7,2721.6,8.94252]
[1749744052458,5.04388,2722.7,2722.1,0.73455]
[1749744052459,3.2078,2722.7,2722.1,0.73455]
[1749744052654,3.2078,2722.7,2721.3,0.7378]
[1749744052655,0.73444,2722.6,2722.5,3.2078]
[1749744052861,0.73443,2722.7,2722.5,3.2078]
[1749744053060,10.8338,2723.2,2722.5,4.4671]
[1749744053364,0.73452,2722.3,2722.2,3.2078]
[1749744053554,3.2078,2722.4,2721.4,1.2593]
[1749744053760,0.73463,2722.0,2721.6,3.21331288]
[1749744054062,0.73463,2722.0,2721.7,1.2593]
[1749744054266,0.73466,2721.8,2721.7,1.2593]
[1749744054469,1.83625,2722.4,2721.7,1.2593]
[1749744054470,9.46125,2722.4,2721.7,1.2593]
[1749744054764,7.625,2722.4,2721.7,1.99397]
[1749744054971,0.73459,2722.1,2721.7,1.99399]
[1749744055163,7.625,2722.4,2721.8,1.2508]
[1749744055364,0.73461,2722.0,2721.8,1.2508]
[1749744055566,1.83571,2723.2,2722.2,0.73454]
[1749744055873,0.7345,2722.4,2722.3,4.4586]
[1749744056064,0.7345,2722.4,2722.3,3.2078]
[1749744056666,9.46095,2722.9,2722.3,3.2078]
[1749744056859,10.67745,2722.9,2722.3,3.2078]
[1749744057069,0.7345,2722.4,2722.3,3.2078]
[1749744057767,0.73458,2722.1,2722.0,3.2078]
[1749744057974,3.2078,2722.3,2721.6,0.00551288]
[1749744058175,0.73469,2721.7,2721.6,0.00551288]
[1749744058370,0.73467,2721.8,2721.6,0.00551288]
[1749744058571,0.73469,2721.7,2721.6,0.00551288]
[1749744060179,8.94249,2721.7,2721.6,2.88e-06]
[1749744060673,10.00003772,2721.7,2721.6,2.88e-06]
[1749744060875,10.24529,2721.7,2721.6,2.88e-06]
[1749744061072,5.24529,2721.7,2721.6,2.88e-06]
[1749744061266,12.87029,2721.7,2721.6,2.88e-06]
[1749744061471,10.24529,2721.7,2721.6,2.88e-06]
[1749744061673,7.63051,2721.9,2721.6,2.88e-06]
[1749744061875,0.00551,2721.9,2721.6,8.20780288]
[1749744062076,0.00551,2721.9,2721.8,0.73466]
[1749744062275,0.00551,2721.9,2721.8,0.7414]
[1749744062474,0.00551,2721.9,2721.6,3.20780288]
[1749744062777,0.73469,2721.7,2721.6,2.88e-06]
[1749744063168,8.94249,2721.7,2721.6,2.88e-06]
[1749744063368,0.73488,2721.0,2720.9,3.2078]
[1749744063871,0.73483,2721.2,2720.9,3.94269]
[1749744064072,0.73485,2721.1,2721.0,1.2357]
[1749744064377,0.7349,2720.9,2720.8,0.00551288]
[1749744065482,0.73507,2720.3,2720.2,3.2078]
[1749744065678,3.11938,2720.8,2720.2,3.2078]
[1749744065984,0.73507,2720.3,2720.2,3.2078]
[1749744066374,9.4635,2720.6,2719.8,3.2078]
[1749744066579,1.83794,2719.9,2719.2,3.2078]
[1749744066781,7.626,2720.1,2719.2,3.2078]
[1749744066978,0.73534,2719.3,2719.2,3.2078]
[1749744067182,7.626,2719.6,2719.2,3.2078]
[1749744067383,3.2078,2719.8,2719.2,3.2078]
[1749744067685,0.00551288,2720.4,2720.3,0.73506]
[1749744067890,0.00551288,2720.4,2720.3,3.94286]
[1749744068089,0.00551288,2720.4,2720.3,8.94286]
[1749744068288,0.00551288,2720.4,2720.3,3.2078]
[1749744068589,0.00551288,2720.4,2720.3,8.94287]
[1749744069688,25.89616,2722.0,2720.7,0.73495]
[1749744069689,5.77011,2721.6,2720.7,0.73495]
[1749744069882,0.73486,2721.1,2720.9,3.2078]
[1749744070081,13.39711,2721.6,2720.9,3.2078]
[1749744070285,2.55531,2721.5,2720.9,3.2078]
[1749744070587,3.2078,2721.6,2720.9,3.2078]
[1749744070887,3.2078,2722.0,2721.5,3.2078]
[1749744071084,0.00551288,2722.0,2721.9,3.2078]
[1749744071687,0.00551288,2722.0,2721.9,16.56943]
[1749744072083,0.73443,2722.7,2722.4,0.73449]
[1749744072278,0.7344,2722.8,2722.6,3.2078]
[1749744072684,3.2078,2723.1,2722.6,3.2078]
[1749744072887,12.0975,2723.2,2722.6,3.2078]
[1749744073086,10.84031288,2723.2,2722.6,3.21331288]
[1749744073288,0.73435,2723.0,2722.7,0.7344]
[1749744073593,0.00551288,2723.2,2723.0,0.73432]
[1749744073791,0.73979288,2723.2,2723.1,1.1924]
[1749744073996,0.00551288,2723.2,2723.1,1.1924]
[1749744074288,0.00551288,2723.2,2722.6,3.21331288]
[1749744074289,0.73441,2722.7,2722.6,3.21331288]
[1749744074793,0.73441,2722.7,2722.6,0.00551288]
[1749744075899,0.73468,2721.7,2721.6,3.2078]
[1749744076594,0.73477,2721.4,2721.3,4.4766]
[1749744077091,0.73477,2721.4,2721.3,3.2078]
[1749744077281,0.73482,2721.2,2721.1,0.00551288]
[1749744077682,8.94262,2721.2,2721.1,2.88e-06]
[1749744078491,0.00551288,2721.6,2721.1,3.20780288]
[1749744078695,0.00551288,2721.6,2721.3,3.2078]
[1749744078992,0.00551288,2721.6,2721.5,0.73474]
[1749744079194,0.00551288,2721.6,2721.4,1.2523]
[1749744079395,25.89243,2723.2,2721.4,6.2523]
[1749744079585,7.645,2722.7,2722.2,3.2078]
[1749744079782,0.73455,2722.2,2722.1,1.2523]
[1749744079990,0.73468,2721.7,2721.6,3.2078]
[1749744080388,3.2078,2722.0,2721.4,0.73476]
[1749744080586,9.48134,2722.3,2721.3,4.4601]
[1749744080587,0.00551288,2721.9,2721.7,0.73468]
[1749744080890,0.00551288,2721.9,2721.2,3.9476]
[1749744081092,0.00551288,2721.9,2721.5,3.2078]
[1749744081289,0.00551288,2721.9,2721.6,1.2523]
[1749744081593,0.00551288,2721.9,2721.8,3.94246]
[1749744081895,7.645,2722.8,2721.8,11.58746]
[1749744082086,0.73443,2722.7,2722.3,3.2078]
[1749744082390,0.73447,2722.5,2722.4,1.2145]
[1749744082892,0.73458,2722.1,2722.0,3.2078]
[1749744083089,0.00551,2722.7,2722.2,0.73455]
[1749744083291,0.00551,2722.7,2722.3,4.4223]
[1749744083487,0.00551,2722.7,2722.3,1.2145]
[1749744083689,0.73449,2722.5,2722.3,4.4223]
[1749744083987,0.00551,2722.7,2722.3,4.4223]
[1749744084188,0.00551,2722.7,2722.6,3.94224]
[1749744084394,0.00551,2722.7,2722.6,8.94224]
[1749744084590,0.00551,2722.7,2722.3,4.4223]
[1749744084795,0.00551,2722.7,2722.6,3.2078]
[1749744084992,0.00551,2722.7,2722.6,3.94224]
[1749744085189,0.00551,2722.7,2722.6,3.2078]
[1749744085388,0.00551,2722.7,2722.6,3.94224]
[1749744085687,0.73993,2722.7,2722.6,3.2078]
[1749744085892,0.00551,2722.7,2722.4,0.73449]
[1749744086097,0.73993,2722.7,2722.6,3.2078]
[1749744086596,0.00551,2722.7,2722.6,3.2078]
[1749744087093,0.00551,2722.7,2722.6,8.94224]
[1749744087295,0.00551,2722.7,2722.6,9.63574]
[1749744087592,0.00551,2722.7,2722.6,4.63574]
[1749744087788,0.73435,2723.0,2722.6,8.9013]
[1749744087988,0.73435,2723.0,2722.9,3.2078]
[1749744088191,0.73439,2722.8,2722.7,1.213]
[1749744089193,0.0394,2723.1,2722.8,0.73439]
[1749744089491,0.0394,2723.1,2723.0,0.73434]
[1749744089891,0.0394,2723.1,2723.0,1.213]
[1749744089892,0.77371,2723.1,2723.0,1.213]
[1749744090292,0.0394,2723.1,2723.0,1.94734]
[1749744090598,1.83526,2723.9,2723.0,1.213]
[1749744090792,1.83526,2723.9,2722.9,3.91]
[1749744090793,6.87842,2723.8,2722.9,3.2078]
[1749744091094,0.73442,2722.7,2722.6,5.1485]
[1749744091298,0.73442,2722.7,2722.6,3.2078]
[1749744091492,1.83573,2723.2,2722.6,3.94223]
[1749744091689,0.73442,2722.7,2722.6,3.2078]
[1749744091889,0.73442,2722.7,2719.3,36.76621]
[1749744091890,0.73452,2722.3,2722.2,3.2078]
[1749744092696,1.83618,2722.5,2721.8,3.2078]
[1749744092991,0.00551288,2722.4,2722.3,3.94232]
[1749744093394,0.00551288,2722.4,2722.3,3.94233]
[1749744093794,0.00551288,2722.4,2722.3,8.94233]
[1749744093995,5.72918,2723.6,2723.0,0.73432]
[1749744094194,3.2078,2723.6,2723.3,0.73425]
[1749744094389,3.2078,2723.6,2723.0,3.2078]
[1749744094592,0.73421,2723.5,2723.3,0.73423]
[1749744094795,1.83551,2723.5,2722.7,3.9573]
[1749744095090,0.73429,2723.2,2722.9,0.73435]
[1749744095296,3.2078,2723.6,2723.2,0.73427]
[1749744095599,7.642,2724.0,2723.4,0.73422]
[1749744095788,7.642,2724.0,2723.6,0.73415]
[1749744095991,7.642,2724.0,2723.5,3.2078]
[1749744096192,0.73414,2723.8,2723.5,3.2078]
[1749744096492,0.7342,2723.5,2723.4,0.00551288]
[1749744097898,1.9874,2723.5,2723.4,0.00551288]
[1749744098288,0.7342,2723.5,2723.4,0.00551288]
[1749744099697,7.641,2723.9,2723.4,0.00551288]
[1749744099896,0.73416,2723.7,2723.5,3.2078]
[1749744100096,7.641,2723.9,2723.5,3.2078]
[1749744100299,0.73411,2723.9,2723.7,0.73414]
[1749744100597,3.2078,2724.2,2723.5,3.2078]
[1749744100801,0.73405,2724.1,2723.9,0.73408]
[1749744101099,3.2078,2724.2,2723.6,1.83542]
[1749744101292,3.94184,2724.2,2723.9,0.73407]
[1749744101496,3.2078,2724.2,2724.1,0.73404]
[1749744101694,3.94182,2724.2,2723.7,1.83535]
[1749744101901,0.73405,2724.1,2723.9,0.73408]
[1749744102094,3.2078,2724.2,2723.6,2.55852]
[1749744102289,3.2078,2724.6,2724.0,1.83518]
[1749744102496,4.4732,2725.3,2724.3,3.2078]
[1749744102697,0.73375,2725.2,2724.7,3.2078]
[1749744102899,0.73385,2724.9,2724.7,3.2078]
[1749744103099,1.92895,2725.2,2724.7,3.2078]
[1749744103304,1.1952,2725.2,2724.7,3.2078]
[1749744103598,1.83436,2725.3,2724.7,3.2078]
[1749744103806,5.04216,2725.3,2724.7,3.2078]
[1749744104106,1.1952,2725.2,2724.8,0.73385]
[1749744104295,10.0911,2725.5,2724.8,0.73385]
[1749744104498,1.1952,2725.4,2724.7,3.2078]
[1749744104700,1.1952,2725.4,2724.5,0.00551288]
[1749744104701,1.8343,2725.3,2724.8,3.2078]
[1749744104894,0.73391,2724.6,2724.5,0.00551288]
[1749744106609,1.1952,2724.9,2724.5,0.00551288]
[1749744107003,0.73391,2724.6,2724.5,0.00551288]
[1749744107408,5.73391,2724.6,2724.5,0.00551288]
[1749744107607,6.96071,2724.6,2724.5,0.00551288]